[Event "Titled Tuesday Blitz February 07 Early 2023"]
[White "Liyanage, Ranindu Dilshan"]
[Black "De Vreugt, Dennis"]
[WhiteFideId "9915834"]
[BlackFideId "1003909"]
[WhiteElo "2342"]
[BlackElo "2392"]
[Result "1-0"]
[Round "02"]
[TimeControl "180+2"]
[Date "2023.02.07"]
[WhiteClock "0:00:58"]
[BlackClock "0:00:14"]

1. e4 {[%clk 0:02:58]}  e5 {[%clk 0:02:59]} 2. Nf3 {[%clk 0:02:48]}  Nc6 {[%clk 0:02:59]} 3. Bc4 {[%clk 0:02:46]}  Nf6 {[%clk 0:02:56]} 4. d3 {[%clk 0:02:46]}  Bc5 {[%clk 0:02:53]} 5. c3 {[%clk 0:02:46]}  d6 {[%clk 0:02:52]} 6. Nbd2 {[%clk 0:02:46]}  a6 {[%clk 0:02:46]} 7. Bb3 {[%clk 0:02:46]}  h6 {[%clk 0:02:41]} 8. h3 {[%clk 0:02:46]}  O-O {[%clk 0:02:39]} 9. Nf1 {[%clk 0:02:46]}  Ne7 {[%clk 0:02:34]} 10. g4 {[%clk 0:02:41]}  Ng6 {[%clk 0:02:30]} 11. g5 {[%clk 0:02:41]}  Nh5 {[%clk 0:02:03]} 12. gxh6 {[%clk 0:02:38]}  Ngf4 {[%clk 0:01:59]} 13. hxg7 {[%clk 0:02:32]}  Kxg7 {[%clk 0:01:48]} 14. Ne3 {[%clk 0:02:19]}  Rg8 {[%clk 0:01:42]} 15. d4 {[%clk 0:02:08]}  exd4 {[%clk 0:01:29]} 16. Nxd4 {[%clk 0:02:05]}  Kf8 {[%clk 0:01:23]} 17. Qf3 {[%clk 0:02:00]}  Qf6 {[%clk 0:01:17]} 18. Ng4 {[%clk 0:01:49]}  Qg5 {[%clk 0:01:08]} 19. Ne2 {[%clk 0:01:19]}  Bxg4 {[%clk 0:00:42]} 20. hxg4 {[%clk 0:01:17]}  Qxg4 {[%clk 0:00:41]} 21. Qxg4 {[%clk 0:01:14]}  Rxg4 {[%clk 0:00:41]} 22. Nxf4 {[%clk 0:01:12]}  Nxf4 {[%clk 0:00:38]} 23. Bxf4 {[%clk 0:01:12]}  Ke7 {[%clk 0:00:30]} 24. Bg3 {[%clk 0:01:09]}  Rxe4+ {[%clk 0:00:28]} 25. Kd2 {[%clk 0:01:09]}  c6 {[%clk 0:00:24]} 26. Rae1 {[%clk 0:01:09]}  d5 {[%clk 0:00:22]} 27. Bc2 {[%clk 0:01:05]}  Re6 {[%clk 0:00:20]} 28. Bf5 {[%clk 0:01:04]}  Rxe1 {[%clk 0:00:20]} 29. Rxe1+ {[%clk 0:01:05]}  Kf6 {[%clk 0:00:20]} 30. Bd3 {[%clk 0:01:06]}  Rg8 {[%clk 0:00:19]} 31. Rg1 {[%clk 0:01:03]}  Re8 {[%clk 0:00:18]} 32. Bh4+ {[%clk 0:01:02]}  Ke6 {[%clk 0:00:17]} 33. Re1+ {[%clk 0:01:03]}  Kd7 {[%clk 0:00:18]} 34. Bf5+ {[%clk 0:01:04]}  Re6 {[%clk 0:00:18]} 35. Bxe6+ {[%clk 0:01:04]}  fxe6 {[%clk 0:00:17]} 36. f4 {[%clk 0:01:04]}  Bd6 {[%clk 0:00:16]} 37. Bg5 {[%clk 0:01:04]}  c5 {[%clk 0:00:16]} 38. Rh1 {[%clk 0:01:04]}  b5 {[%clk 0:00:17]} 39. Rh7+ {[%clk 0:01:05]}  Kc6 {[%clk 0:00:17]} 40. Rh6 {[%clk 0:01:04]}  Kd7 {[%clk 0:00:16]} 41. Ke2 {[%clk 0:01:02]}  a5 {[%clk 0:00:16]} 42. Kf3 {[%clk 0:01:02]}  a4 {[%clk 0:00:17]} 43. a3 {[%clk 0:01:00]}  b4 {[%clk 0:00:16]} 44. cxb4 {[%clk 0:01:00]}  cxb4 {[%clk 0:00:16]} 45. Rh7+ {[%clk 0:01:01]}  Kc6 {[%clk 0:00:16]} 46. Be7 {[%clk 0:01:02]}  bxa3 {[%clk 0:00:15]} 47. bxa3 {[%clk 0:01:01]}  Bc7 {[%clk 0:00:15]} 48. Bb4 {[%clk 0:01:00]}  Bb6 {[%clk 0:00:14]} 49. Re7 {[%clk 0:01:00]}  Kb5 {[%clk 0:00:14]} 50. Rxe6 {[%clk 0:01:01]}  d4 {[%clk 0:00:14]} 51. Ke4 {[%clk 0:00:59]}  Bc5 {[%clk 0:00:12]} 52. Re5 {[%clk 0:00:59]}  Kc4 {[%clk 0:00:13]} 53. Rxc5+ {[%clk 0:00:59]}  Kb3 {[%clk 0:00:13]} 54. Kxd4 {[%clk 0:00:58]}  Kb2 {[%clk 0:00:13]} 55. Kd3 {[%clk 0:00:57]}  Kb3 {[%clk 0:00:14]} 56. f5 {[%clk 0:00:57]}  Ka2 {[%clk 0:00:13]} 57. f6 {[%clk 0:00:57]}  Kb2 {[%clk 0:00:14]} 58. f7 {[%clk 0:00:58]}  Kb3 {[%clk 0:00:14]} 59. f8=Q {[%clk 0:00:59]}  Ka2 {[%clk 0:00:15]} 60. Qf2+ {[%clk 0:00:59]}  Kb3 {[%clk 0:00:14]} 61. Rc3# {[%clk 0:00:58]} 1-0


[Site "https://www.chess.com"]

[Event "Titled Tuesday Blitz February 07 Early 2023"]
[White "Garayev, Kanan"]
[Black "Bobomurodova, Maftuna"]
[WhiteFideId "13406671"]
[BlackFideId "14207400"]
[WhiteElo "2346"]
[BlackElo "1946"]
[Result "1-0"]
[Round "02"]
[TimeControl "180+2"]
[Date "2023.02.07"]
[WhiteClock "0:02:18"]
[BlackClock "0:01:18"]

1. e4 {[%clk 0:02:47]}  e5 {[%clk 0:02:58]} 2. Nf3 {[%clk 0:02:46]}  Nc6 {[%clk 0:02:57]} 3. Bc4 {[%clk 0:02:42]}  Bc5 {[%clk 0:02:56]} 4. c3 {[%clk 0:02:42]}  Nf6 {[%clk 0:02:56]} 5. d4 {[%clk 0:02:42]}  exd4 {[%clk 0:02:54]} 6. cxd4 {[%clk 0:02:42]}  Bb4+ {[%clk 0:02:55]} 7. Nc3 {[%clk 0:02:41]}  Nxe4 {[%clk 0:02:54]} 8. O-O {[%clk 0:02:37]}  Bxc3 {[%clk 0:02:52]} 9. d5 {[%clk 0:02:37]}  Ne7 {[%clk 0:02:22]} 10. bxc3 {[%clk 0:02:35]}  O-O {[%clk 0:02:17]} 11. Qd4 {[%clk 0:02:31]}  Nd6 {[%clk 0:02:16]} 12. Bd3 {[%clk 0:02:31]}  c6 {[%clk 0:02:05]} 13. Bxh7+ {[%clk 0:02:18]}  Kxh7 {[%clk 0:01:33]} 14. Qh4+ {[%clk 0:02:18]}  Kg8 {[%clk 0:01:26]} 15. Ng5 {[%clk 0:02:17]}  Re8 {[%clk 0:01:22]} 16. Qh7+ {[%clk 0:02:17]}  Kf8 {[%clk 0:01:22]} 17. Qh8+ {[%clk 0:02:17]}  Ng8 {[%clk 0:01:22]} 18. Nh7+ {[%clk 0:02:18]}  Ke7 {[%clk 0:01:22]} 19. Bg5+ {[%clk 0:02:19]}  f6 {[%clk 0:01:20]} 20. Qxg7+ {[%clk 0:02:17]}  Nf7 {[%clk 0:01:18]} 21. Bxf6+ {[%clk 0:02:18]} 1-0


[Site "https://www.chess.com"]

[Event "Titled Tuesday Blitz February 07 Early 2023"]
[White "Dimitrov, Atanas"]
[Black "Mendez Machado, Andre"]
[WhiteFideId "2901315"]
[BlackFideId "6603793"]
[WhiteElo "2269"]
[BlackElo "1974"]
[Result "1-0"]
[Round "02"]
[TimeControl "180+2"]
[Date "2023.02.07"]
[WhiteClock "0:02:21"]
[BlackClock "0:00:04"]

1. Nf3 {[%clk 0:03:00]}  Nf6 {[%clk 0:02:57]} 2. c4 {[%clk 0:02:58]}  e6 {[%clk 0:02:54]} 3. Nc3 {[%clk 0:02:58]}  d5 {[%clk 0:02:49]} 4. e3 {[%clk 0:02:58]}  Be7 {[%clk 0:02:48]} 5. b3 {[%clk 0:02:56]}  O-O {[%clk 0:02:46]} 6. Bb2 {[%clk 0:02:57]}  c5 {[%clk 0:02:47]} 7. cxd5 {[%clk 0:02:56]}  exd5 {[%clk 0:02:46]} 8. d4 {[%clk 0:02:57]}  Nc6 {[%clk 0:02:37]} 9. Be2 {[%clk 0:02:51]}  Bf5 {[%clk 0:02:30]} 10. O-O {[%clk 0:02:50]}  b6 {[%clk 0:02:18]} 11. dxc5 {[%clk 0:02:46]}  bxc5 {[%clk 0:02:19]} 12. Rc1 {[%clk 0:02:46]}  Rc8 {[%clk 0:02:10]} 13. Na4 {[%clk 0:02:43]}  Ne4 {[%clk 0:01:32]} 14. Nd2 {[%clk 0:02:42]}  Nb4 {[%clk 0:00:21]} 15. a3 {[%clk 0:02:35]}  Nc6 {[%clk 0:00:11]} 16. Nxe4 {[%clk 0:02:35]}  dxe4 {[%clk 0:00:11]} 17. Nxc5 {[%clk 0:02:25]}  Bxc5 {[%clk 0:00:05]} 18. Rxc5 {[%clk 0:02:25]}  Be6 {[%clk 0:00:05]} 19. b4 {[%clk 0:02:23]}  Qg5 {[%clk 0:00:04]} 20. Rxg5 {[%clk 0:02:21]} 1-0


[Site "https://www.chess.com"]

[Event "Titled Tuesday Blitz February 07 Early 2023"]
[White "Senlle Caride, Miguel"]
[Black "Han, Yichen"]
[WhiteFideId "2282500"]
[BlackFideId "1054430"]
[WhiteElo "2343"]
[BlackElo "2413"]
[Result "1-0"]
[Round "02"]
[TimeControl "180+2"]
[Date "2023.02.07"]
[WhiteClock "0:00:08"]
[BlackClock "0:00:04"]

1. e4 {[%clk 0:03:00]}  g6 {[%clk 0:02:59]} 2. d4 {[%clk 0:03:00]}  Bg7 {[%clk 0:02:59]} 3. Nc3 {[%clk 0:03:01]}  c5 {[%clk 0:02:39]} 4. dxc5 {[%clk 0:03:00]}  Qa5 {[%clk 0:02:37]} 5. Nf3 {[%clk 0:02:51]}  Bxc3+ {[%clk 0:02:32]} 6. bxc3 {[%clk 0:02:52]}  Qxc3+ {[%clk 0:02:32]} 7. Bd2 {[%clk 0:02:52]}  Qxc5 {[%clk 0:02:32]} 8. Bd3 {[%clk 0:02:21]}  d6 {[%clk 0:02:24]} 9. O-O {[%clk 0:02:18]}  Nf6 {[%clk 0:02:19]} 10. Rb1 {[%clk 0:02:06]}  O-O {[%clk 0:02:11]} 11. Re1 {[%clk 0:02:00]}  Qc7 {[%clk 0:01:58]} 12. h3 {[%clk 0:01:36]}  Nc6 {[%clk 0:01:49]} 13. c4 {[%clk 0:01:00]}  Ne5 {[%clk 0:01:41]} 14. Bf1 {[%clk 0:00:56]}  b6 {[%clk 0:01:29]} 15. Nd4 {[%clk 0:00:55]}  Bb7 {[%clk 0:01:24]} 16. f4 {[%clk 0:00:45]}  Ned7 {[%clk 0:01:12]} 17. Nb5 {[%clk 0:00:38]}  Qc6 {[%clk 0:01:02]} 18. e5 {[%clk 0:00:34]}  dxe5 {[%clk 0:00:56]} 19. fxe5 {[%clk 0:00:35]}  Ne4 {[%clk 0:00:56]} 20. Bh6 {[%clk 0:00:34]}  Rfd8 {[%clk 0:00:55]} 21. Qc2 {[%clk 0:00:18]}  Nxe5 {[%clk 0:00:40]} 22. Qb2 {[%clk 0:00:18]}  f6 {[%clk 0:00:35]} 23. Rbd1 {[%clk 0:00:17]}  Nxc4 {[%clk 0:00:32]} 24. Qb3 {[%clk 0:00:15]}  Rxd1 {[%clk 0:00:11]} 25. Bxc4+ {[%clk 0:00:14]}  Kh8 {[%clk 0:00:08]} 26. Rxd1 {[%clk 0:00:15]}  Nd6 {[%clk 0:00:07]} 27. Bd5 {[%clk 0:00:14]}  Qc5+ {[%clk 0:00:05]} 28. Be3 {[%clk 0:00:13]}  Bxd5 {[%clk 0:00:06]} 29. Rxd5 {[%clk 0:00:10]}  Qc6 {[%clk 0:00:05]} 30. Nxd6 {[%clk 0:00:10]}  exd6 {[%clk 0:00:06]} 31. Bd4 {[%clk 0:00:10]}  Kg7 {[%clk 0:00:05]} 32. Qf3 {[%clk 0:00:06]}  Rf8 {[%clk 0:00:05]} 33. Qe4 {[%clk 0:00:06]}  Rf7 {[%clk 0:00:05]} 34. Be3 {[%clk 0:00:04]}  Qd7 {[%clk 0:00:03]} 35. Qf4 {[%clk 0:00:04]}  g5 {[%clk 0:00:03]} 36. Qxd6 {[%clk 0:00:04]}  Qf5 {[%clk 0:00:02]} 37. Rxf5 {[%clk 0:00:04]}  Kg6 {[%clk 0:00:03]} 38. Bd4 {[%clk 0:00:05]}  Kxf5 {[%clk 0:00:03]} 39. Qd5+ {[%clk 0:00:05]}  Kg6 {[%clk 0:00:04]} 40. Qe4+ {[%clk 0:00:06]}  Kg7 {[%clk 0:00:04]} 41. Qf5 {[%clk 0:00:07]}  h6 {[%clk 0:00:05]} 42. h4 {[%clk 0:00:07]}  Rf8 {[%clk 0:00:05]} 43. h5 {[%clk 0:00:07]}  Kf7 {[%clk 0:00:04]} 44. Qxf6+ {[%clk 0:00:07]}  Ke8 {[%clk 0:00:04]} 45. Qxh6 {[%clk 0:00:08]}  Rf4 {[%clk 0:00:04]} 46. Qg6+ {[%clk 0:00:08]}  Ke7 {[%clk 0:00:04]} 47. Qxg5+ {[%clk 0:00:08]} 1-0


[Site "https://www.chess.com"]

[Event "Titled Tuesday Blitz February 07 Early 2023"]
[White "Averjanov, Alexey"]
[Black "SicilianPanzer"]
[WhiteFideId "14109867"]
[WhiteElo "2399"]
[BlackElo "2245"]
[Result "1/2-1/2"]
[Round "02"]
[TimeControl "180+2"]
[Date "2023.02.07"]
[WhiteClock "0:00:46"]
[BlackClock "0:00:03"]

1. d4 {[%clk 0:03:00]}  Nf6 {[%clk 0:02:59]} 2. c4 {[%clk 0:03:00]}  e6 {[%clk 0:02:59]} 3. Nf3 {[%clk 0:02:58]}  a6 {[%clk 0:02:59]} 4. e3 {[%clk 0:02:58]}  d5 {[%clk 0:02:57]} 5. Nbd2 {[%clk 0:02:57]}  dxc4 {[%clk 0:02:47]} 6. Bxc4 {[%clk 0:02:56]}  b5 {[%clk 0:02:46]} 7. Be2 {[%clk 0:02:56]}  Bb7 {[%clk 0:02:46]} 8. O-O {[%clk 0:02:56]}  Nbd7 {[%clk 0:02:41]} 9. a4 {[%clk 0:02:56]}  b4 {[%clk 0:02:37]} 10. b3 {[%clk 0:02:56]}  c5 {[%clk 0:02:25]} 11. Bb2 {[%clk 0:02:55]}  Be7 {[%clk 0:02:16]} 12. Rc1 {[%clk 0:02:55]}  Rc8 {[%clk 0:02:14]} 13. Nc4 {[%clk 0:02:55]}  O-O {[%clk 0:02:10]} 14. Nfe5 {[%clk 0:02:55]}  cxd4 {[%clk 0:02:06]} 15. Bxd4 {[%clk 0:02:53]}  Nxe5 {[%clk 0:01:36]} 16. Bxe5 {[%clk 0:02:46]}  Qd5 {[%clk 0:01:15]} 17. Bf3 {[%clk 0:02:34]}  Qxd1 {[%clk 0:01:14]} 18. Rfxd1 {[%clk 0:02:35]}  Bxf3 {[%clk 0:01:12]} 19. gxf3 {[%clk 0:02:36]}  Rfd8 {[%clk 0:00:53]} 20. Kf1 {[%clk 0:02:32]}  Nd7 {[%clk 0:00:40]} 21. Bb2 {[%clk 0:02:23]}  Nc5 {[%clk 0:00:39]} 22. Na5 {[%clk 0:02:18]}  Kf8 {[%clk 0:00:25]} 23. Bd4 {[%clk 0:02:17]}  Rd5 {[%clk 0:00:13]} 24. Ke2 {[%clk 0:02:02]}  e5 {[%clk 0:00:09]} 25. Bxc5 {[%clk 0:01:57]}  Rdxc5 {[%clk 0:00:08]} 26. Rxc5 {[%clk 0:01:55]}  Rxc5 {[%clk 0:00:09]} 27. Nc4 {[%clk 0:01:52]}  f6 {[%clk 0:00:04]} 28. Rd7 {[%clk 0:01:50]}  Kf7 {[%clk 0:00:04]} 29. Ra7 {[%clk 0:01:49]}  Rc6 {[%clk 0:00:03]} 30. e4 {[%clk 0:01:49]}  Ke6 {[%clk 0:00:02]} 31. h3 {[%clk 0:01:47]}  g5 {[%clk 0:00:03]} 32. Kd2 {[%clk 0:01:45]}  h5 {[%clk 0:00:03]} 33. Rb7 {[%clk 0:01:41]}  Bc5 {[%clk 0:00:03]} 34. Ke2 {[%clk 0:01:38]}  Bd6 {[%clk 0:00:01]} 35. Rh7 {[%clk 0:01:29]}  h4 {[%clk 0:00:01]} 36. Rb7 {[%clk 0:01:29]}  Bc5 {[%clk 0:00:01]} 37. Ne3 {[%clk 0:01:15]}  Bxe3 {[%clk 0:00:01]} 38. fxe3 {[%clk 0:01:16]}  Rc2+ {[%clk 0:00:01]} 39. Kd3 {[%clk 0:01:16]}  Rc3+ {[%clk 0:00:01]} 40. Kd2 {[%clk 0:01:14]}  Rxb3 {[%clk 0:00:02]} 41. Rb6+ {[%clk 0:01:14]}  Kf7 {[%clk 0:00:03]} 42. Rxa6 {[%clk 0:01:15]}  Rb2+ {[%clk 0:00:03]} 43. Kd3 {[%clk 0:01:15]}  Rb3+ {[%clk 0:00:04]} 44. Kd2 {[%clk 0:01:12]}  Rb2+ {[%clk 0:00:04]} 45. Kd3 {[%clk 0:01:11]}  Rb3+ {[%clk 0:00:03]} 46. Ke2 {[%clk 0:01:05]}  Ra3 {[%clk 0:00:04]} 47. a5 {[%clk 0:01:03]}  Kg6 {[%clk 0:00:03]} 48. Rb6 {[%clk 0:01:00]}  Rxa5 {[%clk 0:00:03]} 49. Rxb4 {[%clk 0:01:00]}  Ra2+ {[%clk 0:00:03]} 50. Kf1 {[%clk 0:01:00]}  Rh2 {[%clk 0:00:04]} 51. Rb8 {[%clk 0:00:56]}  Rxh3 {[%clk 0:00:03]} 52. Kg2 {[%clk 0:00:57]}  Rg3+ {[%clk 0:00:04]} 53. Kf2 {[%clk 0:00:58]}  g4 {[%clk 0:00:02]} 54. Rg8+ {[%clk 0:00:55]}  Kf7 {[%clk 0:00:02]} 55. Rxg4 {[%clk 0:00:50]}  Rxg4 {[%clk 0:00:02]} 56. fxg4 {[%clk 0:00:51]}  Kg7 {[%clk 0:00:02]} 57. Kg2 {[%clk 0:00:50]}  Kg6 {[%clk 0:00:02]} 58. Kh2 {[%clk 0:00:49]}  Kh6 {[%clk 0:00:02]} 59. Kg2 {[%clk 0:00:49]}  Kg6 {[%clk 0:00:02]} 60. Kh2 {[%clk 0:00:48]}  Kh6 {[%clk 0:00:02]} 61. Kg2 {[%clk 0:00:46]}  Kg6 {[%clk 0:00:03]} 1/2-1/2


[Site "https://www.chess.com"]

[Event "Titled Tuesday Blitz February 07 Early 2023"]
[White "Koellner, Ruben Gideon"]
[Black "Simonovic, Miroslav"]
[WhiteFideId "12993093"]
[BlackFideId "919152"]
[WhiteElo "2426"]
[BlackElo "2082"]
[Result "1-0"]
[Round "02"]
[TimeControl "180+2"]
[Date "2023.02.07"]
[WhiteClock "0:00:21"]
[BlackClock "0:00:56"]

1. d4 {[%clk 0:03:00]}  Nf6 {[%clk 0:02:59]} 2. Nf3 {[%clk 0:03:00]}  c5 {[%clk 0:03:00]} 3. d5 {[%clk 0:02:57]}  b5 {[%clk 0:03:00]} 4. e4 {[%clk 0:02:51]}  Nxe4 {[%clk 0:02:57]} 5. Bd3 {[%clk 0:02:44]}  Nd6 {[%clk 0:02:55]} 6. a4 {[%clk 0:02:22]}  c4 {[%clk 0:02:51]} 7. Be2 {[%clk 0:02:22]}  Bb7 {[%clk 0:02:47]} 8. axb5 {[%clk 0:02:15]}  g6 {[%clk 0:02:02]} 9. Qd4 {[%clk 0:02:05]}  f6 {[%clk 0:02:02]} 10. Nc3 {[%clk 0:01:53]}  Bg7 {[%clk 0:02:00]} 11. Bf4 {[%clk 0:01:25]}  Nf7 {[%clk 0:01:23]} 12. Qxc4 {[%clk 0:00:34]}  O-O {[%clk 0:01:22]} 13. O-O {[%clk 0:00:30]}  d6 {[%clk 0:01:18]} 14. Nd4 {[%clk 0:00:28]}  Qd7 {[%clk 0:01:12]} 15. Nc6 {[%clk 0:00:21]}  Rc8 {[%clk 0:01:11]} 16. Qe4 {[%clk 0:00:16]}  Ne5 {[%clk 0:01:10]} 17. Bxe5 {[%clk 0:00:16]}  fxe5 {[%clk 0:01:03]} 18. Bg4 {[%clk 0:00:16]}  Qc7 {[%clk 0:00:53]} 19. Bxc8 {[%clk 0:00:16]}  Bxc8 {[%clk 0:00:54]} 20. Qe3 {[%clk 0:00:15]}  Nxc6 {[%clk 0:00:52]} 21. bxc6 {[%clk 0:00:13]}  a6 {[%clk 0:00:52]} 22. Na4 {[%clk 0:00:12]}  Rb8 {[%clk 0:00:52]} 23. Ra3 {[%clk 0:00:12]}  Qa5 {[%clk 0:00:52]} 24. Nc3 {[%clk 0:00:10]}  Qb4 {[%clk 0:00:51]} 25. Rb3 {[%clk 0:00:11]}  Qxb3 {[%clk 0:00:50]} 26. cxb3 {[%clk 0:00:11]}  Rxb3 {[%clk 0:00:51]} 27. Qa7 {[%clk 0:00:11]}  Kf7 {[%clk 0:00:48]} 28. Qc7 {[%clk 0:00:10]}  Bf5 {[%clk 0:00:48]} 29. Qd8 {[%clk 0:00:09]}  Rxb2 {[%clk 0:00:46]} 30. c7 {[%clk 0:00:09]}  e4 {[%clk 0:00:46]} 31. c8=Q {[%clk 0:00:10]}  Bxc8 {[%clk 0:00:47]} 32. Qxc8 {[%clk 0:00:10]}  Rc2 {[%clk 0:00:47]} 33. Qe6+ {[%clk 0:00:11]}  Kf8 {[%clk 0:00:47]} 34. Nxe4 {[%clk 0:00:11]}  Re2 {[%clk 0:00:47]} 35. Ng5 {[%clk 0:00:10]}  Rxe6 {[%clk 0:00:46]} 36. Nxe6+ {[%clk 0:00:11]}  Kf7 {[%clk 0:00:46]} 37. Nxg7 {[%clk 0:00:12]}  Kxg7 {[%clk 0:00:47]} 38. Ra1 {[%clk 0:00:13]}  Kf6 {[%clk 0:00:47]} 39. Rxa6 {[%clk 0:00:14]}  Ke5 {[%clk 0:00:48]} 40. Ra7 {[%clk 0:00:14]}  Kxd5 {[%clk 0:00:49]} 41. Rxe7 {[%clk 0:00:15]}  Kc4 {[%clk 0:00:49]} 42. Rxh7 {[%clk 0:00:16]}  d5 {[%clk 0:00:49]} 43. Rh6 {[%clk 0:00:16]}  d4 {[%clk 0:00:50]} 44. Rxg6 {[%clk 0:00:17]}  d3 {[%clk 0:00:51]} 45. Rd6 {[%clk 0:00:18]}  Kc3 {[%clk 0:00:52]} 46. h4 {[%clk 0:00:18]}  d2 {[%clk 0:00:52]} 47. h5 {[%clk 0:00:19]}  Kc2 {[%clk 0:00:53]} 48. h6 {[%clk 0:00:19]}  d1=Q+ {[%clk 0:00:54]} 49. Rxd1 {[%clk 0:00:19]}  Kxd1 {[%clk 0:00:54]} 50. h7 {[%clk 0:00:20]}  Ke2 {[%clk 0:00:55]} 51. h8=Q {[%clk 0:00:21]}  Kd3 {[%clk 0:00:56]} 52. Qe5 {[%clk 0:00:21]} 1-0


[Site "https://www.chess.com"]

[Event "Titled Tuesday Blitz February 07 Early 2023"]
[White "Paravyan, David"]
[Black "Czopor, Maciej"]
[WhiteFideId "4194985"]
[BlackFideId "21805431"]
[WhiteElo "2601"]
[BlackElo "2385"]
[Result "1-0"]
[Round "02"]
[TimeControl "180+2"]
[Date "2023.02.07"]
[WhiteClock "0:00:05"]
[BlackClock "0:00:01"]

1. d4 {[%clk 0:03:00]}  d6 {[%clk 0:02:58]} 2. Nf3 {[%clk 0:02:57]}  Nd7 {[%clk 0:02:59]} 3. e4 {[%clk 0:02:57]}  c6 {[%clk 0:02:56]} 4. a4 {[%clk 0:02:55]}  g6 {[%clk 0:02:54]} 5. Bc4 {[%clk 0:02:55]}  Bg7 {[%clk 0:02:53]} 6. O-O {[%clk 0:02:54]}  d5 {[%clk 0:02:31]} 7. exd5 {[%clk 0:02:53]}  Nb6 {[%clk 0:02:32]} 8. Bb3 {[%clk 0:02:51]}  cxd5 {[%clk 0:02:32]} 9. a5 {[%clk 0:02:51]}  Nc4 {[%clk 0:02:31]} 10. Nc3 {[%clk 0:01:50]}  e6 {[%clk 0:02:10]} 11. Bxc4 {[%clk 0:01:40]}  dxc4 {[%clk 0:02:11]} 12. Ne5 {[%clk 0:01:38]}  Ne7 {[%clk 0:02:03]} 13. Nxc4 {[%clk 0:01:38]}  O-O {[%clk 0:01:58]} 14. Ne2 {[%clk 0:01:23]}  Nc6 {[%clk 0:01:53]} 15. c3 {[%clk 0:01:22]}  e5 {[%clk 0:01:37]} 16. Be3 {[%clk 0:01:01]}  Be6 {[%clk 0:01:33]} 17. Nxe5 {[%clk 0:00:59]}  Nxe5 {[%clk 0:01:33]} 18. dxe5 {[%clk 0:00:59]}  Bxe5 {[%clk 0:01:08]} 19. Bd4 {[%clk 0:00:58]}  Bc7 {[%clk 0:01:05]} 20. Qd2 {[%clk 0:00:53]}  Qh4 {[%clk 0:01:02]} 21. g3 {[%clk 0:00:34]}  Qg4 {[%clk 0:01:02]} 22. Nf4 {[%clk 0:00:32]}  Bc4 {[%clk 0:00:38]} 23. Rfe1 {[%clk 0:00:32]}  Rfe8 {[%clk 0:00:29]} 24. Rxe8+ {[%clk 0:00:24]}  Rxe8 {[%clk 0:00:30]} 25. Re1 {[%clk 0:00:25]}  Rd8 {[%clk 0:00:30]} 26. Bf6 {[%clk 0:00:13]}  Rc8 {[%clk 0:00:23]} 27. Nd5 {[%clk 0:00:08]}  Bxd5 {[%clk 0:00:02]} 28. Qxd5 {[%clk 0:00:09]}  h5 {[%clk 0:00:01]} 29. Qxb7 {[%clk 0:00:05]} 1-0


[Site "https://www.chess.com"]

[Event "Titled Tuesday Blitz February 07 Early 2023"]
[White "Mogranzini, Roberto"]
[Black "Svane, Frederik"]
[WhiteFideId "810894"]
[BlackFideId "12923044"]
[WhiteElo "2459"]
[BlackElo "2600"]
[Result "1-0"]
[Round "02"]
[TimeControl "180+2"]
[Date "2023.02.07"]
[WhiteClock "0:00:15"]
[BlackClock "0:00:03"]

1. e4 {[%clk 0:03:00]}  c5 {[%clk 0:02:56]} 2. Nf3 {[%clk 0:03:00]}  d6 {[%clk 0:02:56]} 3. Nc3 {[%clk 0:03:00]}  Nf6 {[%clk 0:02:56]} 4. e5 {[%clk 0:03:01]}  dxe5 {[%clk 0:02:55]} 5. Nxe5 {[%clk 0:03:02]}  Bd7 {[%clk 0:02:55]} 6. g3 {[%clk 0:02:56]}  Nc6 {[%clk 0:02:55]} 7. Nxd7 {[%clk 0:02:56]}  Qxd7 {[%clk 0:02:56]} 8. Bg2 {[%clk 0:02:56]}  e6 {[%clk 0:02:55]} 9. O-O {[%clk 0:02:56]}  Be7 {[%clk 0:02:56]} 10. d3 {[%clk 0:02:56]}  O-O {[%clk 0:02:56]} 11. b3 {[%clk 0:02:47]}  Rad8 {[%clk 0:02:48]} 12. Bb2 {[%clk 0:02:45]}  Nd4 {[%clk 0:02:42]} 13. Ne2 {[%clk 0:02:44]}  b6 {[%clk 0:02:31]} 14. Qd2 {[%clk 0:02:38]}  h6 {[%clk 0:02:23]} 15. Rad1 {[%clk 0:02:36]}  Rfe8 {[%clk 0:02:17]} 16. Rfe1 {[%clk 0:02:36]}  Nf5 {[%clk 0:02:06]} 17. Nf4 {[%clk 0:02:29]}  Nd5 {[%clk 0:02:00]} 18. Nxd5 {[%clk 0:02:24]}  exd5 {[%clk 0:02:00]} 19. Bh3 {[%clk 0:02:23]}  Bd6 {[%clk 0:01:10]} 20. d4 {[%clk 0:01:40]}  Rxe1+ {[%clk 0:00:59]} 21. Rxe1 {[%clk 0:01:33]}  Nxd4 {[%clk 0:00:56]} 22. Qxd4 {[%clk 0:01:33]}  cxd4 {[%clk 0:00:55]} 23. Bxd7 {[%clk 0:01:33]}  Rxd7 {[%clk 0:00:56]} 24. Re8+ {[%clk 0:01:31]}  Kh7 {[%clk 0:00:56]} 25. Bxd4 {[%clk 0:01:32]}  Rc7 {[%clk 0:00:56]} 26. c3 {[%clk 0:01:26]}  Bc5 {[%clk 0:00:48]} 27. Rd8 {[%clk 0:00:58]}  Bxd4 {[%clk 0:00:42]} 28. cxd4 {[%clk 0:00:58]}  Rc2 {[%clk 0:00:42]} 29. a4 {[%clk 0:00:33]}  Rb2 {[%clk 0:00:40]} 30. Rxd5 {[%clk 0:00:33]}  Rxb3 {[%clk 0:00:39]} 31. Rd7 {[%clk 0:00:34]}  a5 {[%clk 0:00:35]} 32. d5 {[%clk 0:00:31]}  Rb4 {[%clk 0:00:30]} 33. Rb7 {[%clk 0:00:23]}  Kg6 {[%clk 0:00:15]} 34. d6 {[%clk 0:00:22]}  Kf6 {[%clk 0:00:15]} 35. d7 {[%clk 0:00:23]}  Ke7 {[%clk 0:00:15]} 36. h4 {[%clk 0:00:23]}  Rxa4 {[%clk 0:00:15]} 37. Rxb6 {[%clk 0:00:23]}  Kxd7 {[%clk 0:00:16]} 38. Rb7+ {[%clk 0:00:23]}  Ke6 {[%clk 0:00:16]} 39. Ra7 {[%clk 0:00:23]}  g5 {[%clk 0:00:10]} 40. Ra6+ {[%clk 0:00:16]}  Kf5 {[%clk 0:00:10]} 41. Rxh6 {[%clk 0:00:15]}  gxh4 {[%clk 0:00:10]} 42. gxh4 {[%clk 0:00:16]}  Rg4+ {[%clk 0:00:10]} 43. Kf1 {[%clk 0:00:16]}  a4 {[%clk 0:00:10]} 44. h5 {[%clk 0:00:15]}  Kg5 {[%clk 0:00:03]} 45. Rh8 {[%clk 0:00:15]} 1-0


[Site "https://www.chess.com"]